fUST/lending_fUST_20250411
["ID","MTS","AMOUNT","RATE_DAILY","PERIOD"]
[357692188,1744332728830,-1000.0,0.00022452,2]
[357692189,1744332728841,-1002.90705766,0.00022452,2]
[357692190,1744332728851,-1000.0,0.00022452,2]
[357692191,1744332728862,-1017.29359191,0.00022452,2]
[357692192,1744332728872,-1000.0,0.00022452,2]
[357692193,1744332728882,-1000.0,0.00022452,2]
[357692194,1744332728893,-1000.0,0.00022452,2]
[357692195,1744332728903,-1003.95192591,0.00022452,2]
[357692196,1744332728913,-1000.0,0.00022452,2]
[357692197,1744332728923,-502.78113675,0.00022452,2]
[357692198,1744332728932,-1000.0,0.00022452,2]
[357692199,1744332728942,-1000.0,0.00022452,2]
[357692200,1744332728952,-1000.0,0.00022452,2]
[357692201,1744332728962,-1000.0,0.00022452,2]
[357692202,1744332728972,-501.52668909,0.00022452,2]
[357692203,1744332728982,-1000.0,0.00022452,2]
[357692204,1744332728992,-1132.93,0.00022465,2]
[357692205,1744332729002,-3699.75,0.00022465,2]
[357692206,1744332729011,-865.73,0.00022465,2]
[357692207,1744332729022,-1251.82,0.00022465,2]
[357692208,1744332729032,-599.27,0.00022465,2]
[357692209,1744332729042,-570.69,0.00022465,2]
[357692210,1744332729051,-822.09,0.00022465,2]
[357692211,1744332729061,-780.46,0.00022465,2]
[357692212,1744332729071,-911.25,0.00022465,2]
[357692213,1744332729082,-500.0,0.00022465,2]
[357692214,1744332729092,-1232.99,0.00022465,2]
[357692215,1744332729102,-588.16,0.00022465,2]
[357692216,1744332729111,-500.0,0.00022465,2]
[357692217,1744332729121,-507.17,0.00022465,2]
[357692218,1744332729131,-1079.66,0.00022465,2]
[357692219,1744332729140,-1430.67,0.00022465,2]
[357692220,1744332729150,-1119.95,0.00022465,2]
[357692221,1744332729160,-625.16,0.00022465,2]
[357692222,1744332729170,-686.77,0.00022465,2]
[357692223,1744332729181,-2680.42,0.00022465,2]
[357692224,1744332729191,-500.0,0.00022465,2]
[357692225,1744332729200,-596.86,0.00022465,2]
[357692226,1744332729210,-2411.42,0.00022465,2]
[357692227,1744332729220,-687.7,0.00022465,2]
[357692228,1744332729230,-902.62,0.00022465,2]
[357692229,1744332729240,-2689.13,0.00022465,2]
[357692230,1744332729250,-785.7,0.00022465,2]
[357692231,1744332729259,-457.97693653,0.00022465,2]
[357692232,1744332729269,-5675.99,0.00022465,2]
[357692233,1744332729279,-870.2,0.00022465,2]
[357692234,1744332729289,-597.88,0.00022465,2]
[357692235,1744332729299,-626.25,0.00022465,2]
[357692236,1744332729309,-892.18,0.00022465,2]
[357692237,1744332729321,-682.01,0.00022465,2]
[357692238,1744332729331,-2060.38,0.00022465,2]
[357692239,1744332729342,-605.05,0.00022465,2]
[357692240,1744332729352,-2354.26,0.00022465,2]
[357692241,1744332729362,-622.34,0.00022465,2]
[357692242,1744332729371,-1017.63,0.00022465,2]
[357692243,1744332729381,-938.97,0.00022465,2]
[357692244,1744332729392,-658.07,0.00022465,2]
[357692245,1744332729403,-1373.8,0.00022465,2]
[357692246,1744332729413,-753.79,0.00022465,2]
[357692247,1744332729424,-1265.29,0.00022465,2]
[357692248,1744332729623,-820.1,0.00022465,2]
[357692249,1744332729634,-584.98,0.00022465,2]
[357692250,1744332729644,-1800.19,0.00022465,2]
[357692251,1744332729654,-508.82,0.00022465,2]
[357692252,1744332729665,-965.93,0.00022465,2]
[357692253,1744332729680,-622.37,0.00022465,2]
[357692254,1744332729690,-964.69,0.00022465,2]
[357692255,1744332729700,-1069.32,0.00022465,2]
[357692256,1744332729710,-1504.79,0.00022465,2]
[357692257,1744332729722,-626.21,0.00022465,2]
[357692258,1744332729731,-522.1,0.00022465,2]
[357692259,1744332729742,-519.3,0.00022465,2]
[357692260,1744332729753,-1328.83,0.00022465,2]
[357692261,1744332729763,-920.39,0.00022465,2]
[357692262,1744332729772,-1101.36,0.00022465,2]
[357692263,1744332729782,-818.53,0.00022465,2]
[357692264,1744332729791,-856.67,0.00022465,2]
[357692265,1744332729806,-743.65,0.00022465,2]
[357692266,1744332729815,-1156.1,0.00022465,2]
[357692267,1744332729825,-678.36,0.00022465,2]
[357692268,1744332729835,-1705.48,0.00022465,2]
[357692269,1744332729844,-716.68,0.00022465,2]
[357692270,1744332729854,-1296.89,0.00022465,2]
[357692271,1744332729864,-168.85,0.00022465,2]
[357692272,1744332729874,-790.9,0.00022465,2]
[357692273,1744332729883,-704.94,0.00022465,2]
[357692274,1744332729893,-567.7,0.00022465,2]
[357692275,1744332729903,-558.42,0.00022465,2]
[357692276,1744332729913,-500.0,0.00022465,2]
[357692277,1744332729923,-1188.07,0.00022465,2]
[357692278,1744332729933,-714.62,0.00022465,2]
[357692279,1744332729942,-3771.47,0.00022465,2]
[357692280,1744332729952,-570.24,0.00022465,2]
[357692281,1744332729961,-1402.01,0.00022465,2]
[357692282,1744332729971,-191.37875139,0.00022465,2]
[357692283,1744332729982,-1107.44,0.00022465,2]
[357692284,1744332729992,-726.32,0.00022465,2]
[357692285,1744332730001,-1438.7,0.00022465,2]
[357692286,1744332730011,-537.07307555,0.00022465,2]
[357692287,1744332730021,-934.2,0.00022465,2]
[357692288,1744332730031,-870.5,0.00022465,2]
[357692289,1744332730041,-1864.53,0.00022465,2]
[357692290,1744332730051,-537.53,0.00022465,2]
[357692291,1744332730061,-998.15,0.00022465,2]
[357692292,1744332730072,-3529.69,0.00022465,2]
[357692293,1744332730081,-1383.56,0.00022465,2]
[357692294,1744332730091,-3044.77,0.00022465,2]
[357692295,1744332730102,-2146.75,0.00022465,2]
[357692296,1744332730112,-1512.13,0.00022465,2]
[357692297,1744332730122,-14936.72,0.00022465,2]
[357692298,1744332730132,-1335.19,0.00022465,2]
[357692299,1744332730141,-1204.17,0.00022465,2]
[357692300,1744332730151,-1290.13,0.00022465,2]
[357692301,1744332730160,-2211.01,0.00022465,2]
[357692302,1744332730170,-782.17,0.00022465,2]
[357692303,1744332730181,-1521.17,0.00022465,2]
[357692304,1744332730190,-3640.91,0.00022465,2]
[357692305,1744332730200,-708.03,0.00022465,2]
[357692306,1744332730210,-1604.56,0.00022465,2]
[357692307,1744332730220,-1186.97,0.00022465,2]
[357692308,1744332730230,-7810.81,0.00022465,2]
[357692309,1744332730240,-640.07,0.00022465,2]
[357692310,1744332730250,-614.86,0.00022465,2]
[357692311,1744332730260,-13554.02,0.00022465,2]
[357692312,1744332730270,-769.63,0.00022465,2]
[357692313,1744332730280,-5806.94,0.00022465,2]
[357692314,1744332730289,-555.86,0.00022465,2]
[357692315,1744332730299,-1492.5,0.00022465,2]
[357692316,1744332730309,-726.32,0.00022465,2]
[357692317,1744332730318,-659.35,0.00022465,2]
[357692318,1744332730328,-688.0,0.00022465,2]
[357692319,1744332730338,-1067.15,0.00022465,2]
[357692320,1744332730348,-2931.48,0.00022465,2]
[357692321,1744332730358,-1735.47,0.00022465,2]
[357692322,1744332730367,-1109.5,0.00022465,2]
[357692323,1744332730377,-711.11,0.00022465,2]
[357692324,1744332730387,-13734.21,0.00022465,2]
[357692325,1744332730397,-2323.29,0.00022465,2]
[357692326,1744332730407,-1042.58,0.00022465,2]
[357692327,1744332730417,-728.17,0.00022465,2]
[357692328,1744332730427,-569.2,0.00022465,2]
[357692329,1744332730437,-500.0,0.00022465,2]
[357692330,1744332730447,-4218.44,0.00022465,2]
[357692331,1744332730457,-848.49,0.00022465,2]
[357692332,1744332730467,-2639.23,0.00022465,2]
[357692333,1744332730477,-2518.79,0.00022465,2]
[357692334,1744332730487,-2840.99,0.00022465,2]
[357692335,1744332730497,-630.78,0.00022465,2]
[357692336,1744332730506,-500.0,0.00022465,2]
[357692337,1744332730516,-1220.83,0.00022465,2]
[357692338,1744332730526,-5035.72,0.00022465,2]
[357692339,1744332730535,-3916.52,0.00022465,2]
[357692340,1744332730545,-508.34,0.00022465,2]
[357692341,1744332730555,-1000.19,0.00022465,2]
[357692342,1744332730565,-884.76,0.00022465,2]
[357692343,1744332730574,-1347.73,0.00022465,2]
[357692344,1744332730584,-4175.53,0.00022465,2]
[357692345,1744332730594,-2772.56,0.00022465,2]
[357692346,1744332730604,-792.4,0.00022465,2]
[357692347,1744332730614,-856.93,0.00022465,2]
[357692348,1744332730623,-740.48,0.00022465,2]
[357692349,1744332730633,-781.83,0.00022465,2]
[357692350,1744332730644,-601.25,0.00022465,2]
[357692351,1744332730655,-9626.05,0.00022465,2]
[357692352,1744332730665,-966.14,0.00022465,2]
[357692353,1744332730678,-1947.04,0.00022465,2]
[357692354,1744332730688,-4677.94,0.00022465,2]
[357692355,1744332730698,-527.85,0.00022465,2]
[357692356,1744332730708,-714.13,0.00022465,2]
[357692357,1744332730719,-756.51,0.00022465,2]
[357692358,1744332730729,-6483.88,0.00022465,2]
[357692359,1744332730738,-808.09,0.00022465,2]
[357692360,1744332730748,-615.42,0.00022465,2]
[357692361,1744332730758,-6484.18,0.00022465,2]
[357692362,1744332730769,-443.44792978,0.00022465,2]
[357692363,1744332730778,-1945.56,0.00022465,2]
[357692364,1744332730788,-524.93,0.00022465,2]
[357692365,1744332730798,-1064.33,0.00022465,2]
[357692366,1744332730807,-585.82,0.00022465,2]
[357692367,1744332730818,-1433.89,0.00022465,2]
[357692368,1744332730827,-917.83,0.00022465,2]
[357692369,1744332730838,-668.16,0.00022465,2]
[357692370,1744332730848,-1100.79,0.00022465,2]
[357692371,1744332730858,-540.97,0.00022465,2]
[357692372,1744332730868,-4679.43,0.00022465,2]
[357692373,1744332730877,-947.12,0.00022465,2]
[357692374,1744332730887,-1008.44,0.00022465,2]
[357692375,1744332730897,-4183.52,0.00022465,2]
[357692376,1744332730907,-1151.7,0.00022465,2]
[357692377,1744332730916,-759.31,0.00022465,2]
[357692378,1744332730926,-484.53815349,0.00022465,2]
[357692379,1744332730936,-626.77,0.00022465,2]
[357692380,1744332730945,-942.33,0.00022465,2]
[357692381,1744332730955,-2564.86,0.00022465,2]
[357692382,1744332730965,-1699.0,0.00022465,2]
[357692383,1744332730976,-731.4,0.00022465,2]
[357692384,1744332730985,-570.97,0.00022465,2]
[357692385,1744332730995,-3260.9,0.00022465,2]
[357692386,1744332731005,-754.83,0.00022465,2]
[357692387,1744332731014,-500.9,0.00022465,2]
[357692388,1744332731025,-159.9592874,0.00022465,2]
[357692389,1744332731035,-18184.96,0.00022465,2]
[357692390,1744332731045,-506.91,0.00022465,2]
[357692391,1744332731054,-740.5,0.00022465,2]
[357692392,1744332731065,-517.88381901,0.00022465,2]
[357692393,1744332731074,-559.11,0.00022465,2]
[357692394,1744332731084,-1994.39,0.00022465,2]
[357692395,1744332731093,-911.05,0.00022465,2]
[357692396,1744332731103,-6436.24,0.00022465,2]
[357692397,1744332731112,-1272.17,0.00022465,2]
[357692398,1744332731122,-1574.76,0.00022465,2]
[357692399,1744332731131,-650.21,0.00022465,2]
[357692400,1744332731141,-1474.54,0.00022465,2]
[357692401,1744332731150,-2422.75,0.00022465,2]
[357692402,1744332731160,-6000.0,0.000225,2]
[357692403,1744332731169,-11630.24417326,0.00022693,4]
[357692404,1744332731178,-1132.93,0.00022739,2]
[357692405,1744332731187,-3699.91955266,0.00022739,2]
[357692406,1744332731196,-865.76540462,0.00022739,2]
[357692407,1744332731206,-1251.91,0.00022739,2]
[357692408,1744332731215,-599.42964229,0.00022739,2]
[357692409,1744332731224,-570.92865884,0.00022739,2]
[357692410,1744332731233,-822.09751569,0.00022739,2]
[357692411,1744332731243,-780.5561041,0.00022739,2]
[357692412,1744332731252,-911.43070745,0.00022739,2]
[357692413,1744332731262,-367.7480799,0.00022739,2]
[357692414,1744332731271,-1233.14000834,0.00022739,2]
[357692415,1744332731281,-588.24820245,0.00022739,2]
[357692416,1744332731290,-191.59226391,0.00022739,2]
[357692417,1744332731300,-507.21391557,0.00022739,2]
[357692418,1744332731309,-1079.69782224,0.00022739,2]
[357692419,1744332731319,-1430.75994948,0.00022739,2]
[357692420,1744332731328,-1120.02271571,0.00022739,2]
[357692421,1744332731338,-625.27151126,0.00022739,2]
[357692422,1744332731348,-686.90174737,0.00022739,2]
[357692423,1744332731358,-2680.5562398,0.00022739,2]
[357692424,1744332731367,-159.98903395,0.00022739,2]
[357692425,1744332731376,-596.86201289,0.00022739,2]
[357692426,1744332731386,-2411.64569915,0.00022739,2]
[357692427,1744332731395,-687.87461005,0.00022739,2]
[357692428,1744332731405,-902.73746336,0.00022739,2]
[357692429,1744332731415,-2689.34224544,0.00022739,2]
[357692430,1744332731424,-785.72628817,0.00022739,2]
[357692431,1744332731434,-5676.02,0.00022739,2]
[357692432,1744332731443,-870.32532233,0.00022739,2]
[357692433,1744332731452,-597.96445243,0.00022739,2]
[357692434,1744332731462,-626.43,0.00022739,2]
[357692435,1744332731472,-892.18430443,0.00022739,2]
[357692436,1744332731481,-682.11421394,0.00022739,2]
[357692437,1744332731492,-2060.43959759,0.00022739,2]
[357692438,1744332731502,-605.17506847,0.00022739,2]
[357692439,1744332731511,-2354.37329828,0.00022739,2]
[357692440,1744332731521,-622.45262481,0.00022739,2]
[357692441,1744332731531,-1017.7284397,0.00022739,2]
[357692442,1744332731541,-938.99268495,0.00022739,2]
[357692443,1744332731551,-658.23917187,0.00022739,2]
[357692444,1744332731561,-1374.02962547,0.00022739,2]
[357692445,1744332731572,-753.95181729,0.00022739,2]
[357692446,1744332731581,-1265.52422488,0.00022739,2]
[357692447,1744332731591,-820.27508308,0.00022739,2]
[357692448,1744332731601,-585.20220229,0.00022739,2]
[357692449,1744332731610,-1800.35343173,0.00022739,2]
[357692450,1744332731619,-508.98,0.00022739,2]
[357692451,1744332731629,-966.14910497,0.00022739,2]
[357692452,1744332731639,-622.44797088,0.00022739,2]
[357692453,1744332731649,-964.8570907,0.00022739,2]
[357692454,1744332731659,-1069.36461279,0.00022739,2]
[357692455,1744332731669,-1504.94323369,0.00022739,2]
[357692456,1744332731681,-626.42782599,0.00022739,2]
[357692457,1744332731691,-522.2620705,0.00022739,2]
[357692458,1744332731701,-519.3820582,0.00022739,2]
[357692459,1744332731711,-1329.01762485,0.00022739,2]
[357692460,1744332731722,-920.51839031,0.00022739,2]
[357692461,1744332731732,-1101.42076687,0.00022739,2]
[357692462,1744332731742,-818.59533735,0.00022739,2]
[357692463,1744332731754,-856.80012119,0.00022739,2]
[357692464,1744332731764,-743.83504491,0.00022739,2]
[357692465,1744332731774,-1156.29750566,0.00022739,2]
[357692466,1744332731783,-678.47719821,0.00022739,2]
[357692467,1744332731793,-1705.52894448,0.00022739,2]
[357692468,1744332731803,-716.76354037,0.00022739,2]
[357692469,1744332731812,-1296.9716156,0.00022739,2]
[357692470,1744332731823,-791.04250559,0.00022739,2]
[357692471,1744332731832,-705.01320834,0.00022739,2]
[357692472,1744332731841,-567.87489016,0.00022739,2]
[357692473,1744332731850,-558.59645648,0.00022739,2]
[357692474,1744332731860,-205.05351434,0.00022739,2]
[357692475,1744332731870,-1188.18024097,0.00022739,2]
[357692476,1744332731879,-714.77770414,0.00022739,2]
[357692477,1744332731889,-3771.55806647,0.00022739,2]
[357692478,1744332731899,-570.26300407,0.00022739,2]
[357692479,1744332731909,-1402.24272197,0.00022739,2]
[357692480,1744332731918,-1107.62,0.00022739,2]
[357692481,1744332731928,-726.33716911,0.00022739,2]
[357692482,1744332731938,-1438.87324406,0.00022739,2]
[357692483,1744332731948,-934.24419316,0.00022739,2]
[357692484,1744332731957,-870.50730867,0.00022739,2]
[357692485,1744332731967,-1864.69912037,0.00022739,2]
[357692486,1744332731977,-537.6343657,0.00022739,2]
[357692487,1744332732071,-998.23555033,0.00022739,2]
[357692488,1744332732081,-3529.70377898,0.00022739,2]
[357692489,1744332732091,-1383.77364677,0.00022739,2]
[357692490,1744332732101,-1512.19276034,0.00022739,2]
[357692491,1744332732111,-2146.84593647,0.00022739,2]
[357692492,1744332732121,-14936.86535717,0.00022739,2]
[357692493,1744332732130,-3044.93030686,0.00022739,2]
[357692494,1744332732141,-1335.42309474,0.00022739,2]
[357692495,1744332732150,-1204.1994561,0.00022739,2]
[357692496,1744332732160,-1290.14406257,0.00022739,2]
[357692497,1744332732170,-2211.09578519,0.00022739,2]
[357692498,1744332732179,-782.32752322,0.00022739,2]
[357692499,1744332732189,-1521.32256,0.00022739,2]
[357692500,1744332732199,-3640.94741447,0.00022739,2]
[357692501,1744332732208,-708.11,0.00022739,2]
[357692502,1744332732217,-1604.62979833,0.00022739,2]
[357692503,1744332732227,-1187.03203817,0.00022739,2]
[357692504,1744332732237,-7811.01888276,0.00022739,2]
[357692505,1744332732246,-640.08001558,0.00022739,2]
[357692506,1744332732256,-614.88229786,0.00022739,2]
[357692507,1744332732266,-13554.06548656,0.00022739,2]
[357692508,1744332732275,-769.83897743,0.00022739,2]
[357692509,1744332732285,-5807.01807665,0.00022739,2]
[357692510,1744332732294,-555.89049687,0.00022739,2]
[357692511,1744332732303,-1492.60808476,0.00022739,2]
[357692512,1744332732313,-726.53305351,0.00022739,2]
[357692513,1744332732323,-659.50473644,0.00022739,2]
[357692514,1744332732333,-688.22367114,0.00022739,2]
[357692515,1744332732343,-1067.23079557,0.00022739,2]
[357692516,1744332732352,-2931.69294703,0.00022739,2]
[357692517,1744332732362,-1735.62388636,0.00022739,2]
[357692518,1744332732371,-1109.55138764,0.00022739,2]
[357692519,1744332732380,-711.12568295,0.00022739,2]
[357692520,1744332732389,-13734.3270998,0.00022739,2]
[357692521,1744332732399,-2323.44986499,0.00022739,2]
[357692522,1744332732409,-1042.66145906,0.00022739,2]
[357692523,1744332732418,-728.25350382,0.00022739,2]
[357692524,1744332732428,-569.29693646,0.00022739,2]
[357692525,1744332732437,-208.41887592,0.00022739,2]
[357692526,1744332732447,-4218.47180715,0.00022739,2]
[357692527,1744332732456,-848.51099263,0.00022739,2]
[357692528,1744332732466,-2639.45743233,0.00022739,2]
[357692529,1744332732476,-2518.91574069,0.00022739,2]
[357692530,1744332732486,-2841.15238928,0.00022739,2]
[357692531,1744332732495,-630.99452084,0.00022739,2]
[357692532,1744332732505,-171.51,0.00022739,2]
[357692533,1744332732514,-1220.95,0.00022739,2]
[357692534,1744332732523,-5035.88595764,0.00022739,2]
[357692535,1744332732532,-3916.63049231,0.00022739,2]
[357692536,1744332732542,-508.37249592,0.00022739,2]
[357692537,1744332732551,-1000.25,0.00022739,2]
[357692538,1744332732560,-884.77,0.00022739,2]
[357692539,1744332732571,-1347.9418779,0.00022739,2]
[357692540,1744332732581,-4175.55225393,0.00022739,2]
[357692541,1744332732592,-2772.59864739,0.00022739,2]
[357692542,1744332732601,-792.61367116,0.00022739,2]
[357692543,1744332732611,-857.09650906,0.00022739,2]
[357692544,1744332732621,-740.64200575,0.00022739,2]
[357692545,1744332732631,-781.83404208,0.00022739,2]
[357692546,1744332732643,-9626.16729023,0.00022739,2]
[357692547,1744332732655,-966.33401925,0.00022739,2]
[357692548,1744332732668,-1947.24000001,0.00022739,2]
[357692549,1744332732681,-601.38020341,0.00022739,2]
[357692550,1744332732693,-4678.02018325,0.00022739,2]
[357692551,1744332732704,-527.99137333,0.00022739,2]
[357692552,1744332732715,-714.32886752,0.00022739,2]
[357692553,1744332732726,-756.58852223,0.00022739,2]
[357692554,1744332732737,-6484.11024817,0.00022739,2]
[357692555,1744332732749,-808.10133411,0.00022739,2]
[357692556,1744332732762,-615.46487952,0.00022739,2]
[357692557,1744332732773,-6484.35318469,0.00022739,2]
[357692558,1744332732784,-1945.61980164,0.00022739,2]
[357692559,1744332732795,-524.93199365,0.00022739,2]
[357692560,1744332732807,-1064.51278467,0.00022739,2]
[357692561,1744332732822,-585.8621882,0.00022739,2]
[357692562,1744332732833,-1434.08960992,0.00022739,2]
[357692563,1744332732843,-917.87594105,0.00022739,2]
[357692564,1744332732854,-668.39395146,0.00022739,2]
[357692565,1744332732864,-1100.90925486,0.00022739,2]
[357692566,1744332732875,-541.15383329,0.00022739,2]
[357692567,1744332732885,-4679.57624875,0.00022739,2]
[357692568,1744332732896,-947.23089754,0.00022739,2]
[357692569,1744332732907,-1008.63747561,0.00022739,2]
[357692570,1744332732918,-4183.65830736,0.00022739,2]
[357692571,1744332732928,-1151.7544929,0.00022739,2]
[357692572,1744332732938,-759.53331497,0.00022739,2]
[357692573,1744332732949,-626.9553915,0.00022739,2]
[357692574,1744332732959,-942.48922539,0.00022739,2]
[357692575,1744332732969,-2564.95997439,0.00022739,2]
[357692576,1744332732980,-1699.12501229,0.00022739,2]
[357692577,1744332732989,-731.43819227,0.00022739,2]
[357692578,1744332732999,-571.19850739,0.00022739,2]
[357692579,1744332733008,-3261.12803627,0.00022739,2]
[357692580,1744332733019,-754.92934419,0.00022739,2]
[357692581,1744332733029,-501.05909876,0.00022739,2]
[357692582,1744332733039,-18184.97368441,0.00022739,2]
[357692583,1744332733049,-507.07371913,0.00022739,2]
[357692584,1744332733060,-740.70988141,0.00022739,2]
[357692585,1744332733073,-559.24682477,0.00022739,2]
[357692586,1744332733083,-1994.4664839,0.00022739,2]
[357692587,1744332733093,-911.05778347,0.00022739,2]
[357692588,1744332733103,-6436.32,0.00022739,2]
[357692589,1744332733114,-1272.22966531,0.00022739,2]
[357692590,1744332733124,-1574.76478321,0.00022739,2]
[357692591,1744332733135,-650.35215685,0.00022739,2]
[357692592,1744332733145,-1474.76459084,0.00022739,2]
[357692593,1744332733155,-2422.81847164,0.00022739,2]
[357692594,1744332733165,-11630.24417326,0.00022969,4]
[357692595,1744332733175,-246.35428062,0.00023,2]
[357692596,1744332733185,-1000.0,0.00023,2]
[357692597,1744332733195,-3560.21548762,0.00023,18]
[357692598,1744332733205,-539335.0,0.00023,5]
[357692599,1744332733214,-419.64641374,0.00023,3]
[357692600,1744332733225,-154.0,0.00023,2]
[357692601,1744332733235,-160.0,0.00023,3]
[357692602,1744332733245,-203.16227674,0.00023,2]
[357692603,1744332733256,-2000.0,0.00023,4]
[357692604,1744332733266,-169.78,0.00023001,2]
[357692605,1744332733277,-1000.0,0.00023007,2]
[357692606,1744332733287,-1132.93,0.00023013,2]
[357692607,1744332733298,-500.0,0.00023021,2]
[357692608,1744332733308,-6500.0,0.00023048,2]
[357692609,1744332733321,-1000.0,0.00023106,2]
[357692610,1744332733331,-1000.0,0.00023157,2]
[357692611,1744332733342,-11630.24417326,0.00023245,4]
[357692612,1744332733353,-239.84119403,0.00023273,2]
[357692613,1744332733363,-173.41250278,0.00023273,2]
[357692614,1744332733373,-1132.93,0.00023287,2]
[357692615,1744332733383,-29545.08862241,0.000233,2]
[357692616,1744332733394,-1000.0,0.00023315,2]
[357692617,1744332733404,-3145.78626458,0.000234,2]
[357692618,1744332733415,-2300.0,0.00023427,2]
[357692619,1744332733426,-500.0,0.00023471,2]
[357692620,1744332733437,-30000.0,0.000235,3]
[357692621,1744332733448,-419.56135214,0.000235,3]
[357692622,1744332733459,-2300.0,0.00023509,2]
[357692623,1744332733470,-11630.24417326,0.00023521,4]
[357692624,1744332733480,-2300.0,0.00023545,2]
[357692625,1744332733490,-1132.93,0.00023561,2]
[357692626,1744332733501,-7000.0,0.00023596,2]
[357692627,1744332733512,-165.43203413,0.00023707,2]
[357692628,1744332733523,-2300.0,0.0002375,2]
[357692629,1744332733534,-11630.24417326,0.00023797,4]
[357692630,1744332733544,-2300.0,0.00023798,2]
[357692631,1744332733554,-1000.0,0.00023834,102]
[357692632,1744332733564,-1132.93,0.00023835,2]
[357692633,1744332733577,-2300.0,0.00023889,2]
[357692634,1744332733589,-1671.92443702,0.00024,2]
[357692635,1744332733600,-1000.0,0.00024,24]
[357692636,1744332733611,-1000.61634248,0.00024,2]
[357692637,1744332733622,-172.0,0.00024,2]
[357692638,1744332733634,-419.64641374,0.00024,10]
[357692639,1744332733645,-160.0,0.00024,10]
[357692640,1744332733656,-2000.0,0.00024,4]
[357692641,1744332733670,-1000.0,0.00024058,2]
[357692642,1744332733686,-11630.24417326,0.00024072,5]
[357692643,1744332733697,-1132.93,0.00024109,2]
[357692644,1744332733709,-674.26,0.00024109,2]
[357692645,1744332733721,-674.26,0.00024109,2]
[357692646,1744332733732,-674.26,0.00024109,2]
[357692647,1744332733744,-674.26,0.00024109,2]
[357692648,1744332733757,-674.26,0.00024109,2]
[357692649,1744332733770,-674.26,0.00024109,2]
[357692650,1744332733785,-674.26,0.00024109,2]
[357692651,1744332733802,-674.26,0.00024109,2]
[357692652,1744332733814,-674.26,0.00024109,2]
[357692653,1744332733829,-674.26,0.00024109,2]
[357692654,1744332733840,-674.26,0.00024109,2]
[357692655,1744332733852,-674.26,0.00024109,2]
[357692656,1744332733863,-674.26,0.00024109,2]
[357692657,1744332733875,-674.26,0.00024109,2]
[357692658,1744332733887,-674.26,0.00024109,2]
[357692659,1744332733899,-674.26,0.00024109,2]
[357692660,1744332733911,-674.26,0.00024109,2]
[357692661,1744332733923,-674.26,0.00024109,2]
[357692662,1744332733934,-674.26,0.00024109,2]
[357692663,1744332733947,-674.26,0.00024109,2]
[357692664,1744332733971,-674.26,0.00024109,2]
[357692665,1744332733990,-674.26,0.00024109,2]
[357692666,1744332734005,-674.26,0.00024109,2]
[357692667,1744332734023,-674.44492216,0.00024109,2]
[357692668,1744332734040,-500.0,0.00024114,2]
[357692669,1744332734060,-2300.0,0.0002412,2]
[357692670,1744332734082,-499.3,0.00024121,2]
[357692671,1744332734098,-3519.18095539,0.00024144,2]
[357692672,1744332734116,-500.0,0.00024151,2]
[357692673,1744332734134,-500.0,0.00024164,2]
[357692674,1744332734152,-2300.0,0.0002422,2]
[357692675,1744332734164,-1000.0,0.00024225,2]
[357692676,1744332734181,-154.0,0.00024255,2]
[357692677,1744332734200,-1000.0,0.00024277,2]
[357692678,1744332734218,-11630.24417326,0.00024348,5]
[357692679,1744332734240,-1132.93,0.00024383,2]
[357692680,1744332734256,-1613.0,0.00024401,2]
[357692681,1744332734269,-500.0,0.00024442,2]
[357692682,1744332734285,-2300.0,0.00024465,2]
[357692683,1744332734305,-50335.94252581,0.000245,4]
[357692684,1744332734320,-500.0,0.0002459,2]
[357692685,1744332734336,-11630.24417326,0.00024624,5]
[357692686,1744332734351,-248.71531821,0.00024642,2]
[357692687,1744332734368,-1132.93,0.00024657,2]